bitfinex/quotes_ETHUSD_20251015
["timestamp","ask_amount","ask_price","bid_price","bid_amount"]
[1760557367511,0.4392,4000.5,4000.4,2.49975002]
[1760557367802,0.2212,4000.9,4000.8,2.49950009]
[1760557368407,0.2212,4000.9,4000.8,2.62430009]
[1760557368611,0.6604,4000.9,4000.8,2.62430009]
[1760557369122,0.6604,4000.9,4000.7,2.49954886]
[1760557369317,0.4392,4000.8,4000.7,2.49954886]
[1760557370614,0.4392,4000.8,4000.6,2.49962505]
[1760557370817,0.2212,4000.9,4000.7,2.49956257]
[1760557371393,0.2212,4000.9,4000.5,0.1248]
[1760557371394,0.4374,4000.8,4000.5,0.1248]
[1760557372497,0.2212,4000.9,4000.5,0.1248]
[1760557372690,0.4374,4000.8,4000.5,0.1248]
[1760557373010,0.4374,4000.7,4000.5,2.62448137]
[1760557373212,0.2212,4000.9,4000.5,2.62444612]
[1760557373417,0.4374,4000.8,4000.5,0.1248]
[1760557373588,0.4374,4000.7,4000.5,0.1248]
[1760557373785,0.4374,4000.6,4000.5,0.1248]
[1760557373986,0.4374,4000.6,4000.5,2.62448753]
[1760557374181,0.4374,4000.6,4000.5,0.1248]
[1760557374913,0.4374,4000.6,3999.6,1.73]
[1760557375117,0.4411,4000.5,4000.2,2.49982773]
[1760557375413,0.4411,4000.4,4000.2,2.49982773]
[1760557375633,0.1248,4000.7,4000.3,2.49980342]
[1760557375920,0.1248,4000.7,4000.1,2.62471383]
[1760557376122,0.5659,4000.7,4000.1,2.62471383]
[1760557376328,0.5659,4000.7,4000.3,2.49976766]
[1760557377228,0.4411,4000.6,4000.3,2.49976766]
[1760557378241,0.2212,4000.9,4000.2,0.02499875]
[1760557378521,0.2212,4000.9,4000.3,2.62458471]
[1760557378920,0.2212,4000.9,4000.5,2.49963295]
[1760557379139,0.001,4001.0,4000.9,2.49943762]
[1760557379286,0.001,4001.0,4000.9,3.15803199]
[1760557379490,0.001,4001.0,4000.9,3.60173762]
[1760557379717,0.001,4001.0,4000.3,0.45031847]
[1760557380027,0.2336,4000.9,4000.4,0.37344452]
[1760557380227,0.4411,4000.8,4000.4,0.37344452]
[1760557380520,0.001,4001.0,4000.8,2.49945774]
[1760557380739,0.2336,4000.9,4000.2,3.13344993]
[1760557380885,0.2336,4000.9,3999.2,1.73]
[1760557381197,0.4411,4000.8,3999.3,0.4687]
[1760557381400,0.4411,4000.8,3999.4,2.50036686]
[1760557381608,2.94062057,4000.8,4000.0,2.49994968]
[1760557381830,2.94068092,4000.7,4000.0,2.49994968]
[1760557381991,0.4411,4000.6,3999.9,2.50005729]
[1760557382343,0.4411,4000.5,3999.9,2.50005729]
[1760557382760,0.4411,4000.4,3999.6,0.002]
[1760557382892,0.2336,3999.7,3999.6,4.23025002]
[1760557383732,0.4411,4000.8,3999.8,2.500125]
[1760557383955,0.2336,4000.9,4000.0,2.5]
[1760557384159,0.001,4001.0,4000.9,2.49943762]
[1760557384326,0.001,4001.0,4000.7,2.49951761]
[1760557384521,0.001,4001.0,4000.0,3.1335607]
[1760557384522,0.6747,4000.9,4000.2,2.49981687]
[1760557384749,0.6747,4000.9,4000.3,2.49975694]
[1760557385027,2.49962711,4000.6,3999.8,2.50208014]
[1760557385223,2.49957622,4000.7,3999.9,2.5000207]
[1760557385532,0.4411,4000.5,3999.9,2.5000207]
[1760557386266,0.2336,4000.9,4000.3,2.49981251]
[1760557386470,0.4411,4000.8,4000.3,2.49978485]
[1760557387122,0.4411,4000.8,4000.0,2.49999637]
[1760557387331,0.4411,4000.7,3999.8,0.002]
[1760557387644,0.2336,3999.9,3999.8,0.002]
[1760557387847,0.2336,3999.9,3999.8,2.502125]
[1760557389021,0.4411,4000.2,4000.0,2.49997688]
[1760557389666,0.4411,4000.7,4000.1,3.88]
[1760557389963,0.1248,4000.8,4000.3,2.49975258]
[1760557390270,0.5659,4000.8,4000.4,2.49974357]
[1760557390756,0.5659,4000.8,4000.1,4.0048]
[1760557390962,0.1248,4000.8,4000.2,2.499875]
[1760557391175,0.001,4001.0,4000.2,2.499875]
[1760557391176,0.001,4001.0,4000.9,2.49943762]
[1760557391474,0.001,4001.0,4000.9,2.52443199]
[1760557391636,0.001,4001.0,4000.9,2.49943762]
[1760557391831,0.001,4001.0,4000.7,2.62436257]
[1760557391832,0.001,4001.0,4000.7,0.1248]
[1760557392058,0.001,4001.0,4000.9,2.49943762]
[1760557392263,0.001,4001.0,4000.9,3.18598665]
[1760557392571,0.001,4001.0,4000.9,3.65468665]
[1760557392790,0.001,4001.0,4000.9,4.28828665]
[1760557393130,0.001,4001.0,4000.9,6.01628665]
[1760557393741,0.001,4001.0,4000.9,5.38268665]
[1760557393946,0.001,4001.0,4000.9,6.01628665]
[1760557394533,0.001,4001.0,4000.9,5.54758665]
[1760557395042,0.001,4001.0,4000.9,6.01628665]
[1760557396481,0.001,4001.0,4000.9,5.89148665]
[1760557397062,0.001,4001.0,4000.9,5.42278665]
[1760557397235,0.001,4001.0,4000.9,3.69478665]
[1760557397435,0.001,4001.0,4000.9,4.16348665]
[1760557398268,0.001,4001.0,4000.9,9.77148665]
[1760557398949,0.001,4001.0,4000.9,9.30278665]
[1760557399155,0.001,4001.0,4000.9,4.86103762]
[1760557400697,0.001,4001.0,4000.9,4.22743762]
[1760557400846,0.4585,4001.0,4000.8,2.4994872]
[1760557401050,0.4585,4001.0,4000.2,1.728]
[1760557401051,0.2233,4000.8,4000.2,2.4998228]
[1760557401352,0.4677,4000.7,4000.2,2.49985409]
[1760557401677,0.4677,4000.6,4000.1,2.49993496]
[1760557401853,0.4677,4000.5,4000.1,2.4999375]
[1760557402212,0.4677,4000.4,4000.0,1.728]
[1760557402379,0.2233,4000.8,4000.0,1.728]
[1760557402553,0.4677,4000.3,4000.1,2.4999375]
[1760557402753,0.4677,4000.3,4000.0,1.728]
[1760557402754,0.4677,4000.3,4000.2,2.499875]
[1760557403583,0.2233,4000.8,4000.7,2.49956257]
[1760557403758,0.001,4001.0,4000.1,0.6336]
[1760557403958,0.001,4001.0,3999.8,0.002]
[1760557403959,2.50000177,4000.0,3999.8,0.002]
[1760557404185,0.6983,3999.9,3999.8,0.002]
[1760557404386,0.2233,3999.9,3999.8,0.002]
[1760557404683,2.49968155,4000.6,3999.8,0.002]
[1760557404881,0.475,4000.5,3999.8,0.002]
[1760557405084,2.49997968,4000.1,3999.8,0.002]
[1760557405283,2.49989648,4000.2,3999.8,0.002]
[1760557405585,0.475,4000.0,3999.9,3.88]
[1760557405983,2.5000625,3999.9,3999.8,0.002]
[1760557406181,0.475,3999.9,3999.8,0.002]
[1760557407056,2.9750625,3999.9,3999.8,0.002]
[1760557407387,0.475,3999.9,3999.8,0.002]
[1760557409464,2.9750625,3999.9,3999.8,0.002]
[1760557411161,2.9750625,3999.9,3999.8,3.882]
[1760557411393,0.1248,4000.0,3999.8,3.882]
[1760557411592,2.9750625,3999.9,3999.8,3.882]
[1760557414492,0.475,3999.9,3999.8,3.882]
[1760557414696,0.1248,4000.0,3999.8,3.882]
[1760557416110,0.1248,4000.0,3999.9,3.88]
[1760557416784,0.1248,4000.0,3999.9,10.34]
[1760557419097,0.5998,4000.0,3999.9,10.34]
[1760557421584,0.1248,4000.0,3999.9,10.34]
[1760557422110,0.1248,4000.0,3999.9,12.8400625]
[1760557422886,0.1248,4000.0,3999.9,10.34]
[1760557428089,0.1248,4000.0,3999.9,6.3800625]
[1760557428286,0.1248,4000.2,3999.9,8.38488075]
[1760557429026,0.1248,4000.2,4000.1,2.4999375]
[1760557429224,0.001,4000.4,4000.1,2.4999375]
[1760557429225,0.001,4000.4,4000.3,3.13341251]
[1760557429736,0.001,4000.4,4000.3,3.60381251]
[1760557431300,0.001,4000.4,4000.3,3.13341251]
[1760557431630,0.001,4000.4,4000.3,4.09722751]
[1760557431936,0.001,4000.4,4000.3,4.55372751]
[1760557432094,0.001,4000.4,4000.3,4.09722751]
[1760557433029,0.001,4000.4,4000.3,2.49981251]
[1760557433551,0.4407,4000.4,4000.2,1.728]
[1760557433758,0.001,4000.4,4000.2,1.728]
[1760557433939,0.001,4000.4,4000.3,2.49981251]
[1760557434116,0.001,4000.4,4000.3,12.83981251]
[1760557434617,0.001,4000.4,4000.3,10.34]
[1760557435450,0.001,4000.4,4000.3,12.83981251]
[1760557436762,0.001,4000.4,4000.3,10.34]
[1760557436929,0.001,4000.4,4000.3,12.83981251]
[1760557437260,0.001,4000.4,4000.3,10.34]
[1760557437558,0.001,4000.4,4000.3,3.88]
[1760557437759,0.001,4000.4,4000.3,6.37981251]
[1760557440064,0.001,4000.4,4000.2,3.88]
[1760557440369,0.4723,4000.4,4000.2,3.88]
[1760557440757,0.001,4000.4,4000.2,3.88]
[1760557441266,0.4713,4000.3,4000.2,3.88]
[1760557441673,0.001,4000.4,4000.2,4.268]
[1760557441873,0.001,4000.4,4000.3,2.96161063]
[1760557442176,0.001,4000.4,4000.2,4.268]
[1760557442337,0.4666,4000.3,4000.2,3.88]
[1760557442732,0.4666,4000.3,4000.2,6.379875]
[1760557442975,0.001,4000.4,4000.3,2.49981251]
[1760557443277,0.001,4000.4,4000.2,6.37985558]
[1760557443670,0.001,4000.4,4000.3,2.49981251]
[1760557445096,0.001,4000.4,4000.3,3.89326159]
[1760557445278,0.001,4000.4,4000.3,3.43146347]
[1760557445648,0.001,4000.4,4000.3,7.31146347]
[1760557445862,0.001,4000.4,4000.3,10.10986347]
[1760557450265,0.001,4000.4,4000.3,10.23466347]
[1760557452764,0.001,4000.9,4000.8,4.86110009]
[1760557453085,0.001,4000.9,4000.8,5.98506788]
[1760557453383,0.001,4000.9,4000.8,6.10986788]
[1760557453951,0.2381,4000.9,4000.8,4.35230009]
[1760557454157,0.6989,4000.9,4000.8,4.22750009]
[1760557455669,0.6989,4000.9,4000.7,3.879]
[1760557455978,0.4608,4000.8,4000.7,8.10651056]
[1760557456577,0.4608,4000.8,4000.7,3.879]
[1760557457964,0.2381,4000.9,4000.7,3.879]
[1760557458167,0.001,4000.9,4000.8,7.03709509]
[1760557458359,0.001,4000.9,4000.8,7.44890009]
[1760557458582,0.001,4000.9,4000.8,7.01210009]
[1760557459409,0.001,4000.9,4000.8,5.29790009]
[1760557460427,0.001,4000.9,4000.8,4.86110009]
[1760557460626,0.001,4000.9,4000.8,5.69843109]
[1760557462526,0.001,4000.9,4000.8,16.50983109]
[1760557462898,0.001,4000.9,4000.8,16.03843109]
[1760557464532,0.001,4000.9,4000.8,16.50983109]
[1760557465194,0.001,4000.9,4000.8,10.04983109]
[1760557467442,0.001,4000.9,4000.8,9.57843109]
[1760557468442,0.001,4000.9,4000.8,8.94483109]
[1760557468908,0.001,4000.9,4000.8,9.57843109]
[1760557469308,0.001,4000.9,4000.8,9.58843109]
[1760557470440,0.001,4001.0,4000.9,8.10643762]
[1760557470639,0.001,4001.0,4000.9,10.39636228]
[1760557472244,0.001,4001.0,4000.9,3.879]
[1760557472544,0.4562,4001.0,4000.9,3.879]
[1760557475457,0.4562,4001.0,4000.9,6.37843762]
[1760557475649,0.001,4001.3,4001.0,3.4228]
[1760557475856,0.001,4001.3,4001.2,2.49925022]
[1760557476048,0.001,4001.3,4001.2,4.42069455]
[1760557476250,0.001,4001.3,4001.2,4.89209455]
[1760557477143,0.001,4001.3,4001.2,4.42069455]
[1760557478364,0.001,4001.3,4001.2,4.44568705]
[1760557478653,0.001,4001.3,4001.2,4.89209455]
[1760557478850,0.001,4001.3,4001.2,4.42069455]
[1760557480158,0.001,4001.3,4001.2,14.30349455]
[1760557482247,0.001,4001.3,4001.2,14.42829455]
[1760557482645,0.0269,4001.3,4001.2,13.79469455]
[1760557482848,0.0269,4001.3,4001.2,12.38205022]
[1760557483750,0.001,4001.3,4001.2,12.38205022]
[1760557484227,0.001,4001.3,4001.2,5.92205022]
[1760557484423,0.0269,4001.3,4001.2,3.4228]
[1760557484828,0.0269,4001.3,4001.2,5.93205022]
[1760557485067,0.001,4001.5,4001.2,9.8649]
[1760557485362,0.001,4001.5,4001.3,3.3949]
[1760557485732,2.50008025,4001.5,4001.3,3.3949]
[1760557486158,2.4991253,4001.4,4001.3,3.3949]
[1760557486366,2.49918776,4001.3,4001.2,0.01]
[1760557487468,34.22718776,4001.3,4001.2,0.01]
[1760557489263,4.22718776,4001.3,4001.2,0.01]
[1760557489430,0.001,4001.5,4001.2,0.01]
[1760557489637,1.729,4001.5,4001.2,0.01]
[1760557489893,2.50006872,4001.5,4001.2,0.01]
[1760557490170,2.49918776,4001.3,4001.2,0.01]
[1760557492329,0.001,4001.5,4001.2,0.01]
[1760557492734,2.50007259,4001.5,4001.2,0.01]
[1760557493339,0.001,4001.5,4001.2,0.01]
[1760557493760,0.001,4001.5,4001.3,2.95973781]
[1760557494076,0.001,4001.5,4001.4,2.4991253]
[1760557494241,0.001,4001.5,4001.3,1.03020054]
[1760557494242,0.001,4001.5,4001.3,0.56960054]
[1760557494442,0.001,4001.5,4001.2,0.01]
[1760557494776,0.001,4001.5,4001.2,2.50924923]
[1760557494958,0.001,4001.5,4001.3,9.8549]
[1760557495358,0.001,4001.5,4001.4,2.4991253]
[1760557495755,0.001,4001.5,4001.3,12.35407041]
[1760557496374,0.1258,4001.5,4001.3,12.35407041]
[1760557496561,0.1258,4001.5,4001.4,2.9558253]
[1760557496891,0.001,4001.5,4001.4,12.8107253]
[1760557497661,0.001,4001.5,4001.4,13.4443253]
[1760557497906,0.001,4001.5,4001.4,13.5691253]
[1760557498067,0.001,4001.5,4001.4,15.33326901]
[1760557500270,0.001,4001.8,4001.7,2.49893795]
[1760557500794,0.001,4001.8,4001.7,2.62373795]
[1760557501206,0.001,4001.8,4001.7,2.49893795]
[1760557501513,0.001,4001.8,4001.5,5.89295478]
[1760557501514,0.001,4001.8,4001.5,3.3939]
[1760557501515,0.1758,4001.8,4001.5,3.3939]
[1760557501711,0.1043,4001.7,4001.5,3.3939]
[1760557501870,0.1043,4001.6,4001.5,3.3939]
[1760557502664,2.60330039,4001.6,4001.5,3.3939]
[1760557502879,0.1043,4001.6,4001.5,3.3939]
[1760557503077,2.49906285,4001.5,4001.2,0.01]
[1760557503291,0.1248,4001.4,4001.2,0.01]
[1760557503479,0.2291,4001.4,4001.2,0.01]
[1760557503685,0.2191,4001.4,4001.2,0.01]
[1760557504083,2.60348776,4001.3,4001.2,0.01]
[1760557507228,0.1043,4001.3,4001.2,0.01]
[1760557507514,2.60348776,4001.3,4001.2,0.01]
[1760557507814,2.60348776,4001.3,4001.2,3.4039]
[1760557508222,0.1043,4001.3,4001.2,3.4039]
[1760557508710,2.49900681,4001.6,4001.2,3.4039]
[1760557508913,2.49895731,4001.7,4001.2,3.4039]
[1760557509221,2.60325731,4001.7,4001.2,3.4039]
[1760557509398,2.60325134,4001.7,4001.2,3.4039]
[1760557509598,2.49900039,4001.6,4001.2,3.4039]
[1760557509810,2.6034046,4001.5,4001.2,3.4039]
[1760557510128,2.60337137,4001.5,4001.2,3.4039]
[1760557510289,2.49907137,4001.5,4001.2,3.4039]
[1760557510489,0.1043,4001.4,4001.2,3.4039]
[1760557511588,0.1758,4001.8,4001.2,3.4039]
[1760557511789,2.49910495,4001.5,4001.2,3.4039]
[1760557512418,2.60342724,4001.4,4001.2,3.4039]
[1760557512617,2.49912724,4001.4,4001.2,3.4039]
[1760557512815,2.60342724,4001.4,4001.2,3.4039]
[1760557513118,0.1043,4001.3,4001.2,3.4039]
[1760557513487,2.60348776,4001.3,4001.2,3.4039]
[1760557513714,2.49909574,4001.5,4001.2,0.80041224]
[1760557513912,2.49918776,4001.3,4001.2,0.80041224]
[1760557514315,2.49914747,4001.4,4001.2,0.80041224]
[1760557514618,2.49918776,4001.3,4001.2,0.80041224]
[1760557515600,32.49918776,4001.3,4001.2,0.80041224]
[1760557515800,32.50028776,4001.3,4001.2,0.80041224]
[1760557516199,28.51128776,4001.3,4001.2,0.80041224]
[1760557516525,32.50028776,4001.3,4001.2,0.80041224]
[1760557517406,2.49918776,4001.3,4001.2,0.80041224]
[1760557517790,2.50028776,4001.3,4001.2,0.80041224]
[1760557518725,1.728,4001.7,4001.2,0.80041224]
[1760557518726,11.728,4001.7,4001.2,0.80041224]
[1760557518932,0.001,4001.8,4001.3,1.24711224]
[1760557519225,0.001,4001.8,4001.7,2.49893795]
[1760557519428,0.001,4001.8,4001.7,3.28935019]
[1760557519629,0.001,4001.8,4001.7,3.74605019]
[1760557519929,0.001,4001.8,4001.7,1.24711224]
[1760557520132,0.001,4001.8,4001.7,3.74605019]
[1760557520931,0.001,4001.8,4001.7,5.09606046]
[1760557529621,0.001,4001.8,4001.7,2.14042251]
[1760557529829,0.001,4001.8,4001.1,0.2328]
[1760557529830,2.49868818,4002.1,4002.0,0.66261224]
[1760557530006,0.001,4002.2,4002.0,0.66261224]
[1760557530214,2.49868818,4002.1,4002.0,0.66261224]
[1760557530412,2.59768818,4002.1,4002.0,0.66261224]
[1760557531222,2.49900039,4001.6,4001.5,0.66261224]
[1760557531438,2.59800039,4001.6,4001.5,0.66261224]
[1760557531620,0.099,4001.6,4001.5,0.66261224]
[1760557531824,2.59800039,4001.6,4001.5,0.66261224]
[1760557532048,0.099,4001.6,4001.2,0.01]
[1760557532349,0.099,4001.6,4000.5,0.002]
[1760557532350,32.49962505,4000.6,4000.5,0.002]
[1760557532521,44.22775002,4000.4,4000.1,0.002]
[1760557532846,35.24822217,4000.4,4000.3,0.001]
[1760557533007,2.5,4000.0,3999.8,0.002]
[1760557533211,2.5,4000.0,3999.6,0.002]
[1760557533212,4.22818751,3999.7,3999.6,0.002]
[1760557533445,34.22818751,3999.7,3999.6,0.002]
[1760557533643,34.93129877,3999.7,3999.6,0.002]
[1760557533857,15.95918751,3999.7,3999.6,0.002]
[1760557534056,4.22818751,3999.7,3999.6,0.002]
[1760557534255,34.32718751,3999.7,3999.6,0.002]
[1760557534763,24.52218751,3999.7,3999.6,0.002]
[1760557534940,22.60918751,3999.7,3999.6,0.002]
[1760557535148,18.12318751,3999.7,3999.6,0.002]
[1760557535470,35.00663211,3999.7,3999.6,0.002]
[1760557537166,16.27163211,3999.7,3999.6,0.002]
[1760557537332,0.1752,4000.2,3999.6,0.002]
[1760557537683,0.2357,4000.7,3999.6,2.94453351]
[1760557537831,0.2742,4001.0,3999.7,0.73715335]
[1760557538033,0.2742,4001.0,3999.7,0.4423]
[1760557538274,2.49974011,4000.5,3999.7,0.4423]
[1760557538579,2.49974011,4000.5,3999.7,2.94246476]
[1760557539541,2.49963428,4000.6,3999.8,2.50011779]
[1760557539871,2.49963428,4000.6,3999.7,0.4423]
[1760557539872,2.49956913,4000.7,3999.9,2.94230597]
[1760557540251,2.4995035,4000.8,3999.9,0.4423]
[1760557540644,2.49969538,4000.5,3999.9,0.4423]
[1760557540843,0.6794446,4000.9,3999.9,0.4423]
[1760557541275,2.49967067,4000.6,3999.9,0.4423]
[1760557541483,4.22750009,4000.8,3999.9,2.94232555]
[1760557541664,1.728,4000.8,3999.9,2.94232555]
[1760557541867,1.728,4000.8,3999.6,0.002]
[1760557542173,0.6794446,4000.9,3999.6,0.002]
[1760557542174,0.1248,3999.9,3999.8,2.500125]
[1760557542347,2.49900773,4001.6,4000.1,0.6336]
[1760557542544,0.1782,4002.1,4000.2,0.6633]
[1760557542753,30.0,4001.7,4000.5,2.49965663]
[1760557542961,30.0,4001.7,4000.2,0.221]
[1760557542962,2.59794025,4001.7,4000.2,0.221]
[1760557543186,2.49894025,4001.7,4000.6,2.94189722]
[1760557543486,0.41636089,4001.7,4000.4,2.49971463]
[1760557543652,2.49943396,4001.0,4000.2,2.72086843]
[1760557543979,2.49943396,4001.0,4000.2,0.221]
[1760557544184,0.271,4001.2,4000.2,0.221]
[1760557544482,2.49950009,4000.8,3999.8,2.50011302]
[1760557544679,0.271,4000.7,3999.8,2.50011302]
[1760557544861,2.49967032,4000.6,3999.8,2.50011302]
[1760557545062,2.49969796,4000.5,3999.8,2.50011302]
[1760557545258,2.49969796,4000.5,3999.7,2.50016884]
[1760557545458,2.77058837,4000.7,3999.7,2.50014318]
[1760557545662,2.49973121,4000.5,3999.8,2.50011955]
[1760557545968,2.4996458,4000.6,3999.9,2.50005196]
[1760557546473,2.4996458,4000.6,3999.9,2.50005193]
[1760557546474,2.49963773,4000.6,3999.9,2.50005193]
[1760557546784,2.49969264,4000.5,3999.8,2.50010525]
[1760557546973,2.49969264,4000.5,3999.9,2.50006237]
[1760557547378,2.49963867,4000.6,3999.9,2.50004879]
[1760557547756,2.49969085,4000.5,3999.8,2.5001043]
[1760557548455,0.271,4000.7,4000.0,2.49995811]
[1760557548683,5.80356425,4000.7,4000.0,2.49995811]
[1760557548887,2.49942446,4001.0,4000.2,2.499875]
[1760557549181,2.49952708,4000.8,4000.1,3.82584502]
[1760557549387,2.49952708,4000.8,4000.3,0.66261224]
[1760557549582,2.49952708,4000.8,4000.4,0.66261224]
[1760557549755,2.49937731,4001.0,4000.4,0.66261224]
[1760557550181,2.49944231,4000.9,4000.4,0.66261224]
[1760557550387,2.49950626,4000.8,4000.4,0.66261224]
[1760557550881,0.0997,4001.3,4000.4,0.66261224]
[1760557550882,2.49929108,4001.2,4000.4,0.66261224]
[1760557551056,1.728,4001.4,4000.5,0.438]
[1760557551254,2.49936958,4001.1,4000.5,0.438]
[1760557551850,2.49941806,4001.0,4000.4,0.66261224]
[1760557552061,2.49941806,4001.0,4000.3,2.4998016]
[1760557552062,2.49941806,4001.0,4000.5,0.66261224]
[1760557552262,2.49932229,4001.1,4000.6,0.438]
[1760557552520,2.49932229,4001.1,4000.7,0.66261224]
[1760557552693,2.49937546,4001.0,4000.7,0.66261224]
[1760557552858,2.49925022,4001.2,4000.7,0.66261224]
[1760557553187,2.49914276,4001.4,4000.8,0.66261224]
[1760557553395,4.22714276,4001.4,4000.8,0.66261224]
[1760557553576,4.22714276,4001.4,4000.8,3.16210117]
[1760557553577,1.728,4001.4,4000.8,3.16210117]
[1760557553757,2.49913031,4001.4,4000.8,0.66261224]
[1760557554788,2.49919609,4001.3,4000.8,0.66261224]
[1760557555994,0.001,4001.1,4000.8,0.66261224]
[1760557557858,2.50034589,4001.1,4000.8,0.66261224]
[1760557558059,0.1248,4000.8,4000.6,0.66261224]
[1760557558390,0.1248,4000.8,4000.3,3.16238686]
[1760557558598,2.4994478,4000.9,4000.4,0.66261224]
[1760557559062,0.001,4001.1,4000.4,0.66261224]
[1760557559261,2.50033194,4001.1,4000.4,0.66261224]
[1760557559458,2.49945691,4000.9,4000.4,0.66261224]
[1760557559662,2.49945314,4000.9,4000.4,0.66261224]
[1760557560379,2.49951748,4000.8,4000.4,0.66261224]
[1760557560774,0.173,4000.9,4000.4,0.66261224]
[1760557560978,2.49950009,4000.8,4000.4,0.66261224]
[1760557561302,2.49957404,4000.7,4000.4,0.66261224]
[1760557561968,0.173,4000.9,4000.4,0.66261224]
[1760557561969,2.49952179,4000.8,4000.4,0.66261224]
[1760557562286,2.49968753,4000.5,4000.4,0.66261224]
[1760557562694,2.59938753,4000.5,4000.4,0.66261224]
[1760557562882,2.49962513,4000.6,4000.4,0.66261224]
[1760557563283,2.49968753,4000.5,4000.4,0.66261224]
[1760557564109,0.001,4001.1,4000.4,3.59934966]
[1760557564308,0.1248,4000.7,4000.5,7.55961224]
[1760557564484,0.1248,4000.7,4000.6,2.93662505]
[1760557565396,0.001,4001.1,4001.0,2.49937515]
[1760557565583,0.1258,4001.1,4001.0,2.49937515]
[1760557565778,0.1258,4001.1,4001.0,2.93637515]
[1760557566315,0.1258,4001.1,4001.0,0.437]
[1760557566516,0.1258,4001.1,4001.0,2.93637515]
[1760557566720,0.1258,4001.1,4000.4,0.52485994]
[1760557566902,0.001,4001.1,4000.4,0.437]
[1760557567078,0.001,4001.1,4000.9,2.49942972]
[1760557567282,0.001,4001.1,4001.0,2.49937515]
[1760557567530,0.1248,4001.0,4000.9,2.49942566]
[1760557567711,0.1248,4001.0,4000.9,2.93642566]
[1760557568108,0.001,4001.1,4001.0,2.49937515]
[1760557568304,0.001,4001.1,4001.0,2.93637515]
[1760557571597,0.001,4001.1,4001.0,2.49937515]
[1760557571935,0.001,4001.1,4001.0,2.93637515]
[1760557574627,0.001,4001.1,4001.0,4.8141689]
[1760557574812,0.001,4001.1,4001.0,5.57589447]
[1760557578843,0.001,4002.0,4001.9,0.30961224]
[1760557579011,2.49975062,4002.0,4001.9,0.30961224]
[1760557579344,2.60835062,4002.0,4001.9,0.30961224]
[1760557581845,32.60835062,4002.0,4001.9,0.30961224]
[1760557584496,23.98335062,4002.0,4001.9,0.30961224]
[1760557584849,32.60835062,4002.0,4001.9,0.30961224]
[1760557585048,24.40535062,4002.0,4001.9,0.30961224]
[1760557585756,32.60835062,4002.0,4001.9,0.30961224]
[1760557585940,26.23035062,4002.0,4001.9,0.30961224]
[1760557586873,29.00435062,4002.0,4001.9,0.30961224]
[1760557587743,2.49918788,4001.3,4001.0,0.30961224]
[1760557587943,10.1086,4001.9,4001.1,0.30961224]
[1760557588139,2.49925022,4001.2,4001.1,0.30961224]
[1760557588772,2.49921138,4001.3,4001.1,0.30961224]
[1760557588976,2.49882421,4001.9,4001.2,0.30961224]
[1760557589175,2.49962898,4002.2,4001.3,2.80877156]
[1760557589378,2.49976534,4002.0,4001.9,0.002]
[1760557589557,0.001,4002.0,4001.9,0.002]
[1760557590444,2.49975062,4002.0,4001.9,0.002]
[1760557592484,2.60805062,4002.0,4001.9,0.002]
[1760557593679,2.49975062,4002.0,4001.9,0.002]
[1760557593892,0.001,4002.0,4001.9,0.002]
[1760557594476,2.49975062,4002.0,4001.9,0.002]
[1760557594674,0.001,4002.0,4001.9,0.002]
[1760557594874,0.001,4002.0,4001.9,0.4764]
[1760557595196,0.001,4002.0,4001.9,2.97521306]
[1760557595795,0.001,4002.0,4001.9,0.4764]
[1760557596196,0.001,4002.0,4001.9,0.31161224]
[1760557596508,0.001,4002.0,4001.9,0.78601224]
[1760557597872,0.001,4002.0,4001.9,0.31161224]
[1760557598797,0.001,4002.0,4001.9,2.97521306]
[1760557599005,0.001,4002.0,4001.9,0.4764]
[1760557599507,0.001,4002.0,4001.9,0.78601224]
[1760557599678,0.1258,4002.0,4001.9,3.2848253]
[1760557600072,0.1258,4002.0,4001.9,3.8632011]
[1760557601372,0.1258,4002.0,4001.9,1.36438804]
[1760557601766,0.1258,4002.0,4001.9,0.002]
[1760557604397,2.62455062,4002.0,4001.9,0.002]
[1760557605690,0.1258,4002.0,4001.9,0.002]
[1760557606072,2.62455062,4002.0,4001.9,0.002]
[1760557607311,3.54746449,4002.0,4001.9,0.002]
[1760557607690,33.54746449,4002.0,4001.9,0.002]
[1760557608683,22.74546449,4002.0,4001.9,0.002]
[1760557608907,22.74546449,4002.0,4001.4,0.002]
[1760557608908,0.6336,4001.9,4001.4,0.002]
[1760557609228,44.39604756,4001.5,4001.4,0.002]
[1760557609441,45.21996143,4001.5,4001.4,0.002]
[1760557609625,45.31896143,4001.5,4001.4,0.002]
[1760557612101,35.13127672,4001.5,4001.4,0.002]
[1760557612404,25.34406285,4001.5,4001.4,0.002]
[1760557612708,25.75161583,4001.5,4001.4,0.002]
[1760557613030,4.63461583,4001.5,4001.4,0.002]
[1760557613236,34.63461583,4001.5,4001.4,0.002]
[1760557614035,42.39461583,4001.5,4001.4,0.002]
[1760557614232,32.39461583,4001.5,4001.4,0.002]
[1760557614612,4.22706285,4001.5,4001.4,0.31161224]
[1760557615536,34.63461583,4001.5,4001.4,0.31161224]
[1760557617234,35.05097672,4001.5,4001.4,0.31161224]
[1760557617417,7.23897672,4001.5,4001.4,0.31161224]
[1760557617735,7.42997672,4001.5,4001.4,0.31161224]
[1760557618037,4.63461583,4001.5,4001.4,0.31161224]
[1760557618239,0.40855298,4002.0,4001.4,0.4518]
[1760557618408,2.49904561,4001.6,4001.4,0.4518]
[1760557618741,2.49904561,4001.6,4001.5,0.4498]
[1760557620035,2.49906285,4001.5,4001.4,0.002]
[1760557620209,33.00561583,4001.5,4001.4,0.002]
[1760557620407,33.42197672,4001.5,4001.4,0.002]
[1760557620711,45.23866143,4001.5,4001.4,0.002]
[1760557620905,45.87226143,4001.5,4001.4,0.002]